[Event "Baltic Zonal 2018"]
[Site "Tallinn"]
[Date "2018.05.17"]
[Round "6"]
[White "Tokranovs, Dmitrijs"]
[Black "Vorobjov, Pavel"]
[Result "1/2-1/2"]
[ECO "B22"]
[WhiteElo "2337"]
[BlackElo "2233"]
[Annotator "NA"]
[PlyCount "127"]
[EventDate "2018.??.??"]
[EventType "swiss"]
[EventCountry "EST"]
[SourceTitle "playchess.com"]
[Source "ChessBase"]
[SourceQuality "1"]
[TimeControl "5400+30"]

1. e4 {[%emt 0:00:00]} c5 {[%emt 0:00:13]} 2. c3 {[%emt 0:00:00]} d6 {[%emt 0:00:12]} 3. g3 {[%emt 0:01:26] B22: Sicilian: 2 c3} (3. d4 Nf6 4. Bd3 g6 5. dxc5 dxc5 6. e5 Nh5 7. h3 Nc6 8. Nf3 Ng7 9. Qe2 Ne6 10. O-O Bg7 11. Re1 Qc7 12. a4 b6 13. Na3 Bb7 14. Be4 {½-½ (90) Howell,D (2676)-Mamedov,R (2709) Riadh 2017}) 3... Nf6 {[%emt 0:02:52]} 4. Bg2 {[%emt 0:00:06]} Nc6 {[%emt 0:00:45]} 5. Ne2 {[%emt 0:01:07]} e5 {[%emt 0:00:41]} 6. h3 {[%emt 0:00:47]} d5 $146 {[%emt 0:03:25]} ({Predecessor:} 6... Be7 7. d4 cxd4 8. cxd4 exd4 9. Nxd4 O-O 10. Nc3 Qb6 11. Nb3 Be6 12. O-O Na5 13. Be3 Qb4 14. Nxa5 Qxa5 15. Nd5 Bxd5 16. exd5 Nd7 {½-½ (16) Ozer,O (2240)-Sredojevic,I (2422) Novi Sad 2016}) 7. exd5 {[%emt 0:01:05]} Nxd5 {[%emt 0:00:09]} 8. d4 {[%emt 0:00:44]} cxd4 {[%emt 0:00:43]} 9. cxd4 {[%emt 0:00:04]} Bb4+ {[%emt 0:00:54]} 10. Bd2 {[%emt 0:03:04]} exd4 {[%emt 0:02:41]} 11. Bxb4 {[%emt 0:03:46]} Ndxb4 {[%emt 0:00:11]} 12. a3 {[%emt 0:00:17]} Na6 {[%emt 0:07:58]} 13. O-O {[%emt 0:01:46]} O-O {[%emt 0:00:30]} 14. Nd2 {[%emt 0:01:31]} Bf5 {[%emt 0:04:13]} 15. b4 {[%emt 0:01:30]} Nc7 {[%emt 0:00:30]} 16. Nb3 {[%emt 0:00:27]} d3 {[%emt 0:05:16]} 17. Nf4 {[%emt 0:00:50]} Qd6 {[%emt 0:29:07]} 18. Nc5 {[%emt 0:03:03]} Rab8 {[%emt 0:00:55]} 19. Ncxd3 {[%emt 0:07:15]} a5 {[%emt 0:00:32]} (19... g5 $15 20. g4 Bxd3 21. Nxd3 Rfd8) 20. bxa5 {[%emt 0:02:04]} Nxa5 {[%emt 0:00:23]} 21. Nb4 $11 {[%emt 0:00:50]} Rfd8 {[%emt 0:01:39]} 22. Qxd6 {[%emt 0:00:32]} Rxd6 {[%emt 0:00:08]} 23. Rac1 {[%emt 0:00:13]} Na6 {[%emt 0:03:28]} 24. Rfd1 {[%emt 0:02:44]} Rxd1+ {[%emt 0:02:07]} 25. Rxd1 {[%emt 0:00:06]} Nxb4 {[%emt 0:03:50]} 26. axb4 {[%emt 0:00:22]} Nc6 {[%emt 0:00:08]} 27. b5 {[%emt 0:00:12]} Nd8 {[%emt 0:01:53]} 28. g4 {[%emt 0:03:24]} Be6 {[%emt 0:04:54]} 29. Nxe6 {[%emt 0:03:58]} Nxe6 {[%emt 0:00:11]} 30. Rd7 {[%emt 0:01:20]} Kf8 {[%emt 0:04:49]} 31. Bd5 {[%emt 0:08:42]} Nd8 {[%emt 0:00:17]} 32. Kg2 {[%emt 0:00:45]} Ke8 {[%emt 0:00:23]} 33. Rc7 {[%emt 0:00:18]} Ra8 {[%emt 0:00:56]} 34. Bxb7 {[%emt 0:01:54]} Ra7 {[%emt 0:00:13]} 35. Bc6+ {[%emt 0:00:06]} Nxc6 {[%emt 0:00:11]} 36. Rxc6 {[%emt 0:00:03]} Rb7 {[%emt 0:00:20]} 37. Rc5 {[%emt 0:00:16]} Ke7 {[%emt 0:02:51]} 38. Kf3 {[%emt 0:00:31]} Kd6 {[%emt 0:00:42]} 39. Rh5 {[%emt 0:00:28]} g6 {[%emt 0:00:38]} 40. Rxh7 {[%emt 0:00:40]} Ke6 {[%emt 0:00:10]} 41. h4 {[%emt 0:02:52]} Rxb5 {[%emt 0:00:33]} 42. Kg3 {[%emt 0:00:12]} Kf6 {[%emt 0:01:17]} 43. f3 {[%emt 0:00:59]} Rb8 {[%emt 0:01:26]} 44. h5 {[%emt 0:01:53]} gxh5 {[%emt 0:00:46]} 45. Rxh5 {[%emt 0:00:29]} Kg6 {[%emt 0:00:40]} 46. Ra5 {[%emt 0:00:22]} Rb1 {[%emt 0:00:58]} 47. Ra6+ {[%emt 0:00:55]} Kg7 {[%emt 0:00:43]} 48. f4 {[%emt 0:00:14]} Rg1+ {[%emt 0:01:28]} 49. Kh4 {[%emt 0:00:07]} Rb1 {[%emt 0:00:55]} 50. Kh5 {[%emt 0:01:08]} Rb5+ {[%emt 0:00:27]} 51. f5 {[%emt 0:01:38]} Rc5 {[%emt 0:00:23]} 52. Kg5 {[%emt 0:00:06]} Rb5 {[%emt 0:00:12]} 53. Ra7 {[%emt 0:00:16]} Rc5 {[%emt 0:00:21]} 54. Re7 {[%emt 0:00:07]} Ra5 {[%emt 0:00:23]} 55. Kf4 {[%emt 0:00:13]} Ra4+ {[%emt 0:01:16]} 56. Re4 {[%emt 0:00:06]} Ra1 {[%emt 0:00:17]} 57. g5 {[%emt 0:02:23]} Rf1+ {[%emt 0:00:10]} 58. Kg4 {[%emt 0:01:20]} Rh1 {[%emt 0:01:30]} 59. Rc4 {[%emt 0:00:48]} Rf1 {[%emt 0:00:27]} 60. Rc3 {[%emt 0:00:43]} Rg1+ {[%emt 0:01:09]} 61. Rg3 {[%emt 0:00:09]} Rh1 {[%emt 0:01:54]} 62. Rh3 {[%emt 0:00:18]} Rg1+ {[%emt 0:00:11]} 63. Kh5 {[%emt 0:00:18]} f6 {[%emt 0:00:32]} 64. gxf6+ 1/2-1/2

[Event "Baltic Zonal 2018"]
[Site "Tallinn"]
[Date "2018.05.17"]
[Round "6"]
[White "Berzina, Ilze"]
[Black "Chukavin, Kirill"]
[Result "0-1"]
[ECO "B40"]
[WhiteElo "2176"]
[BlackElo "2310"]
[Annotator "NA"]
[PlyCount "44"]
[EventDate "2018.??.??"]
[EventType "swiss"]
[EventCountry "EST"]
[SourceTitle "playchess.com"]
[Source "ChessBase"]
[SourceQuality "1"]
[TimeControl "5400+30"]

1. e4 {[%emt 0:00:00]} c5 {[%emt 0:00:17]} 2. Nf3 {[%emt 0:00:00]} e6 {[%emt 0:00:13]} 3. c4 {[%emt 0:00:00]} Nc6 {[%emt 0:00:31]} 4. Nc3 {[%emt 0:00:08]} Nd4 {[%emt 0:00:36]} 5. Nxd4 {[%emt 0:00:17]} cxd4 {[%emt 0:00:08]} 6. Ne2 {[%emt 0:00:19]} Bc5 {[%emt 0:09:24]} 7. Ng3 {[%emt 0:06:33]} Ne7 {[%emt 0:09:42]} 8. Bd3 {[%emt 0:08:53]} Ng6 {[%emt 0:08:43]} 9. Nh5 {[%emt 0:07:54]} Ne5 {[%emt 0:04:58]} 10. Qe2 {[%emt 0:09:14]} Qg5 {[%emt 0:09:36]} 11. Ng3 {[%emt 0:00:16]} h5 {[%emt 0:01:34]} 12. O-O {[%emt 0:02:05] [#]} (12. h4 $17 Qf4 13. a3) 12... Qf4 $19 {[%emt 0:03:10]} 13. f3 {[%emt 0:08:28]} h4 {[%emt 0:21:06]} 14. Nh1 {[%emt 0:00:08]} Nxc4 {[%emt 0:05:07]} 15. b3 {[%emt 0:10:11]} Bd6 {[%emt 0:04:14]} 16. h3 {[%emt 0:08:06]} Ne5 {[%emt 0:02:10]} 17. Bb2 {[%emt 0:03:10]} Qh2+ {[%emt 0:01:42]} 18. Kf2 {[%emt 0:00:07]} Ng6 {[%emt 0:01:21]} 19. Bxd4 {[%emt 0:00:38]} Nf4 {[%emt 0:08:04]} 20. Qe3 {[%emt 0:00:08]} Nxg2 {[%emt 0:00:16]} 21. Qg5 {[%emt 0:00:20]} Nf4+ {[%emt 0:00:16]} 22. Ke3 {[%emt 0:00:50]} Nxh3 {[%emt 0:00:16]} 0-1